[Event "FIDE Open Sachove Univerzity QCC"]
[Site "Ceske Budejovice"]
[Date "2020.07.10"]
[Round "4.23"]
[White "Veselsky, Jan"]
[Black "Svejda, Karel"]
[Result "0-1"]
[ECO "E94"]
[WhiteElo "1580"]
[BlackElo "1387"]
[Annotator "NA RC"]
[PlyCount "98"]
[EventDate "2020.07.01"]
[EventType "swiss"]
[EventCountry "CZE"]
[TimeControl "40/5400+30:1800+30"]

1. d4 {[%emt 0:00:00]} Nf6 {[%emt 0:00:00]} 2. c4 {[%emt 0:00:00]} g6 {[%emt 0:00:00]} 3. Nc3 {[%emt 0:00:51]} Bg7 {[%emt 0:00:00]} 4. e4 {[%emt 0:00:14]} d6 {[%emt 0:00:00]} 5. Nf3 {[%emt 0:00:06]} O-O {[%emt 0:00:02]} 6. Be2 {[%emt 0:00:27]} Nbd7 {[%emt 0:00:17]} 7. O-O {[%emt 0:00:36]} e5 {[%emt 0:00:15]} 8. Be3 {[%emt 0:00:06]} Ng4 {[%emt 0:05:27]} 9. Bg5 {[%emt 0:00:11]} f6 {[%emt 0:03:28]} 10. Bd2 {[%emt 0:00:04]} Qe7 {[%emt 0:07:53]} 11. Nd5 {[%emt 0:10:20]} Qd8 {[%emt 0:02:14]} 12. dxe5 {[%emt 0:05:44]} Ngxe5 {[%emt 0:01:46]} 13. Nd4 {[%emt 0:06:08]} Nc5 {[%emt 0:05:26]} 14. f4 {[%emt 0:05:37]} c6 {[%emt 0:09:30]} 15. Nc3 {[%emt 0:00:08]} Ned3 {[%emt 0:01:42]} 16. Be3 {[%emt 0:08:46]} Nb4 {[%emt 0:05:48]} 17. a3 {[%emt 0:01:31]} Nba6 {[%emt 0:00:47]} 18. Bg4 {[%emt 0:09:53]} Re8 {[%emt 0:02:33]} 19. Bxc8 {[%emt 0:03:47]} Rxc8 {[%emt 0:00:27]} 20. Qf3 {[%emt 0:01:03]} Qe7 {[%emt 0:05:54]} 21. Rae1 {[%emt 0:03:16]} Nxe4 {[%emt 0:01:58]} 22. Bf2 {[%emt 0:07:51]} f5 {[%emt 0:09:35]} 23. g4 {[%emt 0:09:38]} Qf7 {[%emt 0:04:30]} 24. gxf5 {[%emt 0:03:44]} Nd2 {[%emt 0:01:01]} 25. Qg2 {[%emt 0:06:34]} Nxf1 {[%emt 0:00:23]} 26. fxg6 {[%emt 0:02:50]} Qxg6 {[%emt 0:05:49]} 27. Rxf1 {[%emt 0:00:59]} Qxg2+ {[%emt 0:00:19]} 28. Kxg2 {[%emt 0:00:02]} Nc5 {[%emt 0:01:12]} 29. Kf3 {[%emt 0:03:01]} Nd3 {[%emt 0:06:39]} 30. Nf5 {[%emt 0:01:22]} Bxc3 {[%emt 0:02:20]} 31. Rg1+ {[%emt 0:03:21]} Kf8 {[%emt 0:00:52]} 32. bxc3 {[%emt 0:01:03]} Nxf2 {[%emt 0:00:33]} 33. Kxf2 {[%emt 0:00:37]} Rcd8 {[%emt 0:01:35]} 34. Rg7 {[%emt 0:00:12]} Re4 {[%emt 0:01:17]} 35. Kf3 {[%emt 0:00:45]} Rxc4 {[%emt 0:03:12]} 36. Rxh7 {[%emt 0:00:08]} Rxc3+ {[%emt 0:00:54]} 37. Kg4 {[%emt 0:00:06]} Kg8 {[%emt 0:01:52]} 38. Rg7+ {[%emt 0:00:22]} Kh8 {[%emt 0:00:45]} 39. a4 {[%emt 0:00:30]} Rc5 {[%emt 0:00:54]} 40. Rg6 {[%emt 0:01:20]} Rg8 {[%emt 0:01:57]} 41. Rxg8+ {[%emt 0:30:47]} Kxg8 {[%emt 0:30:10]} 42. Nxd6 {[%emt 0:00:30]} b5 {[%emt 0:02:57]} 43. axb5 {[%emt 0:00:55]} cxb5 {[%emt 0:00:15]} 44. Ne4 {[%emt 0:00:10]} Rc2 {[%emt 0:01:25]} 45. Nd6 {[%emt 0:02:02]} b4 {[%emt 0:01:22]} 46. Nb5 {[%emt 0:00:16]} Rxh2 {[%emt 0:01:43]} 47. Nd4 {[%emt 0:01:14]} Rd2 {[%emt 0:01:47]} 48. Nf3 {[%emt 0:00:58]} Rd1 {[%emt 0:01:05]} 49. f5 {[%emt 0:00:42]} b3 {[%emt 0:00:48]} 0-1

[Event "FIDE Open Sachove Univerzity QCC"]
[Site "Ceske Budejovice"]
[Date "2020.07.04"]
[Round "4.24"]
[White "Martirosyan, David"]
[Black "Garabik, Marek"]
[Result "0-1"]
[ECO "C39"]
[WhiteElo "1560"]
[BlackElo "1363"]
[Annotator "NA"]
[PlyCount "42"]
[EventDate "2020.07.01"]
[EventType "swiss"]
[EventCountry "CZE"]
[SourceTitle "playchess.com"]
[Source "ChessBase"]
[SourceQuality "1"]
[TimeControl "40/5400+30:1800+30"]

1. e4 {[%emt 0:00:00]} e5 {[%emt 0:00:00]} 2. f4 {[%emt 0:00:57]} exf4 {[%emt 0:00:00]} 3. Nf3 {[%emt 0:00:08]} g5 {[%emt 0:00:17]} 4. h4 {[%emt 0:00:37]} g4 {[%emt 0:00:33]} 5. Nd4 {[%emt 0:00:07]} Nc6 {[%emt 0:02:28]} 6. Nxc6 {[%emt 0:06:52]} dxc6 {[%emt 0:00:55]} 7. Nc3 {[%emt 0:04:21]} Bg7 {[%emt 0:00:59]} 8. Bc4 {[%emt 0:05:36]} h5 {[%emt 0:01:25]} 9. d3 {[%emt 0:09:02]} Be5 {[%emt 0:01:21]} 10. Ne2 {[%emt 0:07:53]} f3 {[%emt 0:01:35]} 11. gxf3 {[%emt 0:08:04]} gxf3 {[%emt 0:00:18]} 12. Nf4 {[%emt 0:00:47]} Bg4 {[%emt 0:00:28]} 13. Kf2 {[%emt 0:02:12]} Qd6 {[%emt 0:01:14]} 14. Qd2 {[%emt 0:06:39]} Ne7 {[%emt 0:00:44]} 15. c3 {[%emt 0:06:08]} c5 {[%emt 0:05:02]} 16. Bb3 {[%emt 0:10:57]} Ng6 {[%emt 0:01:01]} 17. Nxg6 {[%emt 0:02:43]} fxg6 {[%emt 0:00:08]} 18. Bd1 {[%emt 0:19:54]} O-O-O {[%emt 0:02:08]} 19. Bc2 {[%emt 0:02:40]} Bg3+ {[%emt 0:00:47]} 20. Kf1 {[%emt 0:00:09]} Rhf8 {[%emt 0:00:46]} 21. b3 {[%emt 0:00:54]} f2 {[%emt 0:00:47]} 0-1

[Event "FIDE Open Sachove Univerzity QCC"]
[Site "Ceske Budejovice"]
[Date "2020.07.04"]
[Round "4.25"]
[White "Bara, Jan"]
[Black "Strapec, Lukas"]
[Result "0-1"]
[ECO "D35"]
[WhiteElo "1128"]
[BlackElo "1525"]
[Annotator "NA"]
[PlyCount "62"]
[EventDate "2020.07.01"]
[EventType "swiss"]
[EventCountry "CZE"]
[SourceTitle "playchess.com"]
[Source "ChessBase"]
[SourceQuality "1"]
[TimeControl "40/5400+30:1800+30"]

1. d4 {[%emt 0:00:00]} Nf6 {[%emt 0:00:11]} 2. c4 {[%emt 0:00:00]} e6 {[%emt 0:00:38]} 3. Nc3 {[%emt 0:01:32]} d5 {[%emt 0:00:47]} 4. Nf3 {[%emt 0:01:28]} Be7 {[%emt 0:00:54]} 5. Bf4 {[%emt 0:01:19]} c6 {[%emt 0:04:10]} 6. e3 {[%emt 0:04:16]} Nbd7 {[%emt 0:01:13]} 7. cxd5 {[%emt 0:06:44]} exd5 {[%emt 0:06:42]} 8. Bd3 {[%emt 0:01:57]} O-O {[%emt 0:02:32]} 9. O-O {[%emt 0:01:34]} Nh5 {[%emt 0:09:37]} 10. Bxh7+ {[%emt 0:31:46]} Kxh7 {[%emt 0:09:52]} 11. Ng5+ {[%emt 0:01:20]} Bxg5 {[%emt 0:02:33]} 12. Qxh5+ {[%emt 0:01:54]} Bh6 {[%emt 0:01:45]} 13. Bxh6 {[%emt 0:01:38]} gxh6 {[%emt 0:00:38]} 14. Ne2 {[%emt 0:02:17]} Qg5 {[%emt 0:03:34]} 15. Qf3 {[%emt 0:02:46]} Nb6 {[%emt 0:04:47]} 16. e4 {[%emt 0:06:22]} Bg4 {[%emt 0:02:56]} 17. Qd3 {[%emt 0:02:57]} Bxe2 {[%emt 0:01:01]} 18. Qxe2 {[%emt 0:00:15]} Rae8 {[%emt 0:02:03]} 19. f4 {[%emt 0:00:45]} Qf6 {[%emt 0:05:02]} 20. e5 {[%emt 0:00:07]} Qf5 {[%emt 0:01:34]} 21. g4 {[%emt 0:01:58]} Rg8 {[%emt 0:11:37]} 22. h3 {[%emt 0:03:07]} h5 {[%emt 0:00:30]} 23. Kh1 {[%emt 0:01:11]} hxg4 {[%emt 0:02:29]} 24. hxg4 {[%emt 0:00:10]} Qe4+ {[%emt 0:02:37]} 25. Qxe4+ {[%emt 0:01:18]} dxe4 {[%emt 0:00:30]} 26. Rg1 {[%emt 0:00:30]} Rd8 {[%emt 0:02:19]} 27. Rad1 {[%emt 0:03:17]} e3 {[%emt 0:02:28]} 28. g5 {[%emt 0:02:57]} Kg6 {[%emt 0:04:14]} 29. Rd3 {[%emt 0:02:07]} Nd5 {[%emt 0:00:30]} 30. Rf1 {[%emt 0:00:30]} e2 {[%emt 0:00:30]} 31. f5+ {[%emt 0:00:30]} Kxg5 {[%emt 0:15:17]} 0-1

[Event "FIDE Open Sachove Univerzity QCC"]
[Site "Ceske Budejovice"]
[Date "2020.07.10"]
[Round "4.26"]
[White "Karweit, Alex W"]
[Black "Smola, David"]
[Result "1-0"]
[ECO "A06"]
[WhiteElo "1579"]
[BlackElo "1649"]
[Annotator "NA RC"]
[PlyCount "91"]
[EventDate "2020.07.01"]
[EventType "swiss"]
[EventCountry "CZE"]
[TimeControl "40/5400+30:1800+30"]

1. Nf3 {[%emt 0:00:00]} d5 {[%emt 0:00:05]} 2. b3 {[%emt 0:00:00]} c5 {[%emt 0:01:36]} 3. e3 {[%emt 0:00:15]} Nc6 {[%emt 0:01:59]} 4. Bb2 {[%emt 0:01:12]} Bg4 {[%emt 0:04:43]} 5. Be2 {[%emt 0:03:04]} e6 {[%emt 0:03:50]} 6. h3 {[%emt 0:01:18]} Bh5 {[%emt 0:02:01]} 7. d4 {[%emt 0:00:37]} Nf6 {[%emt 0:02:24]} 8. Nbd2 {[%emt 0:00:57]} Be7 {[%emt 0:05:33]} 9. O-O {[%emt 0:01:17]} O-O {[%emt 0:00:58]} 10. dxc5 {[%emt 0:04:28]} Bxc5 {[%emt 0:01:48]} 11. Rc1 {[%emt 0:01:49]} Qe7 {[%emt 0:03:33]} 12. Ne5 {[%emt 0:08:17]} Nxe5 {[%emt 0:05:41]} 13. Bxh5 {[%emt 0:04:43]} Nc6 {[%emt 0:05:20]} 14. c4 {[%emt 0:07:36]} Rfd8 {[%emt 0:02:13]} 15. cxd5 {[%emt 0:05:59]} Rxd5 {[%emt 0:06:29]} 16. Bf3 {[%emt 0:02:12]} Rd3 {[%emt 0:08:03]} 17. Bxf6 {[%emt 0:13:39]} Qxf6 {[%emt 0:09:01]} 18. Rxc5 {[%emt 0:05:21]} Rad8 {[%emt 0:01:00]} 19. Ne4 {[%emt 0:01:00]} Qe7 {[%emt 0:04:55]} 20. Qc1 {[%emt 0:05:23]} R3d7 {[%emt 0:06:21]} 21. Qc4 {[%emt 0:09:02]} Rd5 {[%emt 0:03:45]} 22. b4 {[%emt 0:05:42]} Ne5 {[%emt 0:02:39]} 23. Qe2 {[%emt 0:02:01]} f5 {[%emt 0:03:09]} 24. Rxd5 {[%emt 0:00:20]} Rxd5 {[%emt 0:01:13]} 25. Nc5 {[%emt 0:00:31]} Nxf3+ {[%emt 0:01:35]} 26. Qxf3 {[%emt 0:00:15]} b6 {[%emt 0:00:38]} 27. Nb3 {[%emt 0:01:24]} Qxb4 {[%emt 0:00:59]} 28. Rd1 {[%emt 0:00:24]} Rxd1+ {[%emt 0:01:45]} 29. Qxd1 {[%emt 0:00:06]} Qa4 {[%emt 0:00:45]} 30. Qd6 {[%emt 0:01:16]} Kf7 {[%emt 0:01:10]} 31. Qc7+ {[%emt 0:01:06]} Kg8 {[%emt 0:02:44]} 32. Qe5 {[%emt 0:00:41]} Kf7 {[%emt 0:00:55]} 33. Qc7+ {[%emt 0:01:51]} Kg8 {[%emt 0:00:37]} 34. Qd8+ {[%emt 0:00:05]} Kf7 {[%emt 0:00:20]} 35. Qd2 {[%emt 0:00:04]} a5 {[%emt 0:03:31]} 36. Kf1 {[%emt 0:04:50]} Qc6 {[%emt 0:01:24]} 37. Nd4 {[%emt 0:01:46]} Qd5 {[%emt 0:01:15]} 38. Qb2 {[%emt 0:01:11]} Qc5 {[%emt 0:01:58]} 39. Qb5 {[%emt 0:04:06]} Qc7 {[%emt 0:01:03]} 40. Qc6 {[%emt 0:02:11]} Qe7 {[%emt 0:00:27]} 41. Qxb6 {[%emt 0:31:06]} Qd7 {[%emt 0:00:37]} 42. Qc6 {[%emt 0:00:00]} Qe7 {[%emt 0:02:18]} 43. Ke2 {[%emt 0:00:00]} g6 {[%emt 0:05:19]} 44. f3 {[%emt 0:00:00]} e5 {[%emt 0:03:16]} 45. Qd5+ {[%emt 0:00:00]} Kf6 {[%emt 0:03:32]} 46. Nc6 {[%emt 0:00:00]} 1-0

[Event "FIDE Open Sachove Univerzity QCC"]
[Site "Ceske Budejovice"]
[Date "2020.07.04"]
[Round "4.27"]
[White "Zachar, Jaroslav"]
[Black "Policar, Martin"]
[Result "1-0"]
[ECO "D40"]
[WhiteElo "1831"]
[BlackElo "1258"]
[Annotator "NA"]
[PlyCount "61"]
[EventDate "2020.07.01"]
[EventType "swiss"]
[EventCountry "CZE"]
[SourceTitle "playchess.com"]
[Source "ChessBase"]
[SourceQuality "1"]
[TimeControl "40/5400+30:1800+30"]

1. d4 {[%emt 0:00:52]} d5 {[%emt 0:00:00]} 2. e3 {[%emt 0:00:33]} e6 {[%emt 0:02:00]} 3. c4 {[%emt 0:00:27]} c5 {[%emt 0:00:40]} 4. Nc3 {[%emt 0:00:12]} Nf6 {[%emt 0:01:50]} 5. Nf3 {[%emt 0:00:44]} Nc6 {[%emt 0:01:24]} 6. Ne5 {[%emt 0:03:21]} cxd4 {[%emt 0:11:23] D40: Queen's Gambit Declined: Semi-Tarrasch with 5 e3.} 7. exd4 {[%emt 0:04:59]} Bd6 {[%emt 0:05:56]} 8. Nxc6 {[%emt 0:08:53]} bxc6 {[%emt 0:02:09] [#]} 9. Qa4 $146 {[%emt 0:01:30]} ({Predecessor:} 9. Be2 h6 10. O-O O-O 11. Be3 dxc4 12. Bxc4 Nd5 13. Qh5 Rb8 14. Bb3 f5 15. Rad1 {½-½ (24) Stanec,N (2505)-Lehner,O (2320) Austria 1996}) 9... Bd7 {[%emt 0:02:52]} 10. c5 {[%emt 0:05:49]} Bc7 {[%emt 0:01:53]} 11. f4 {[%emt 0:01:37]} O-O {[%emt 0:05:55]} 12. Ba6 {[%emt 0:05:10]} Ng4 {[%emt 0:06:53]} 13. g3 {[%emt 0:07:43]} f6 {[%emt 0:02:38]} (13... Qe7 $15 14. O-O Rfb8) 14. Bb7 {[%emt 0:02:13]} Rb8 {[%emt 0:01:12]} 15. Bxc6 {[%emt 0:00:18]} Bxc6 {[%emt 0:00:14]} 16. Qxc6 {[%emt 0:00:07]} Qe7 {[%emt 0:01:33]} 17. O-O {[%emt 0:00:34]} Rbd8 {[%emt 0:01:49]} 18. Bd2 {[%emt 0:02:54]} Ba5 {[%emt 0:04:13]} 19. Rae1 {[%emt 0:09:00]} Bxc3 {[%emt 0:01:41]} 20. Bxc3 {[%emt 0:01:10]} e5 {[%emt 0:01:23]} 21. Ba5 {[%emt 0:04:26]} Rd7 $18 {[%emt 0:04:57]} (21... Qe8 $142 22. Qxe8 Rdxe8) 22. fxe5 {[%emt 0:07:56]} fxe5 {[%emt 0:00:26]} 23. Rxf8+ {[%emt 0:00:15]} Qxf8 {[%emt 0:00:15]} 24. Qe6+ {[%emt 0:00:48]} Rf7 {[%emt 0:00:33]} 25. Qxg4 {[%emt 0:00:23]} Rf2 {[%emt 0:00:35]} 26. Qe6+ {[%emt 0:00:27]} Kh8 {[%emt 0:00:34]} 27. Qxe5 {[%emt 0:00:51]} Rxb2 {[%emt 0:00:32]} 28. Qe8 {[%emt 0:00:55]} Rf2 {[%emt 0:01:04]} 29. Qxf8+ {[%emt 0:00:12]} Rxf8 {[%emt 0:00:21]} 30. c6 {[%emt 0:00:15]} h6 {[%emt 0:00:19]} 31. Re5 {[%emt 0:00:18]} 1-0

[Event "FIDE Open Sachove Univerzity QCC"]
[Site "Ceske Budejovice"]
[Date "2020.07.04"]
[Round "4.28"]
[White "Frnoch, Vojtech"]
[Black "Jilek, Pavel"]
[Result "1-0"]
[ECO "C23"]
[WhiteElo "1597"]
[BlackElo "1234"]
[Annotator "NA"]
[PlyCount "107"]
[EventDate "2020.07.01"]
[EventType "swiss"]
[EventCountry "CZE"]
[SourceTitle "playchess.com"]
[Source "ChessBase"]
[SourceQuality "1"]
[TimeControl "40/5400+30:1800+30"]

1. e4 {[%emt 0:00:00]} e5 {[%emt 0:00:17]} 2. Bc4 {[%emt 0:00:04]} c6 {[%emt 0:01:43]} 3. d4 {[%emt 0:02:13]} d5 {[%emt 0:01:26]} 4. exd5 {[%emt 0:00:19]} cxd5 {[%emt 0:00:27]} 5. Bb5+ {[%emt 0:00:58]} Bd7 {[%emt 0:01:06]} 6. Bxd7+ {[%emt 0:00:24]} Nxd7 {[%emt 0:00:43]} 7. dxe5 {[%emt 0:01:39]} Nxe5 {[%emt 0:01:05]} 8. Qe2 {[%emt 0:05:16]} Bd6 {[%emt 0:03:51]} 9. f4 {[%emt 0:01:16]} Qh4+ {[%emt 0:14:10]} 10. g3 {[%emt 0:00:23]} Qg4 {[%emt 0:00:34]} 11. fxe5 {[%emt 0:01:31]} Qxe2+ {[%emt 0:01:12]} 12. Nxe2 {[%emt 0:00:50]} Bxe5 {[%emt 0:00:25]} 13. O-O {[%emt 0:00:32]} Ne7 {[%emt 0:02:58]} 14. c3 {[%emt 0:01:30]} f6 {[%emt 0:03:31]} 15. Bf4 {[%emt 0:00:35]} Nc6 {[%emt 0:05:13]} 16. Nd2 {[%emt 0:00:50]} O-O-O {[%emt 0:01:26]} 17. Nb3 {[%emt 0:01:14]} Rhe8 {[%emt 0:03:47]} 18. Ned4 {[%emt 0:01:15]} g5 {[%emt 0:08:58]} 19. Bxe5 {[%emt 0:01:16]} Nxe5 {[%emt 0:03:24]} 20. Rxf6 {[%emt 0:02:09]} g4 {[%emt 0:02:17]} 21. Raf1 {[%emt 0:06:26]} Nd3 {[%emt 0:06:32]} 22. Nb5 {[%emt 0:02:16]} Re1 {[%emt 0:04:03]} 23. Rxe1 {[%emt 0:02:28]} Nxe1 {[%emt 0:00:38]} 24. N5d4 {[%emt 0:04:33]} Nd3 {[%emt 0:01:18]} 25. Ne6 {[%emt 0:03:10]} Re8 {[%emt 0:02:27]} 26. Nbc5 {[%emt 0:04:06]} Ne5 {[%emt 0:03:20]} 27. Rh6 {[%emt 0:01:25]} Re7 {[%emt 0:03:43]} 28. Nf4 {[%emt 0:03:37]} Nf3+ {[%emt 0:02:25]} 29. Kf2 {[%emt 0:00:18]} Ng5 {[%emt 0:11:30]} 30. Nxd5 {[%emt 0:09:23]} Rf7+ {[%emt 0:04:08]} 31. Rf6 {[%emt 0:00:43]} Nh3+ {[%emt 0:03:23]} 32. Kf1 {[%emt 0:00:30]} Rxf6+ {[%emt 0:01:36]} 33. Nxf6 {[%emt 0:00:00]} b6 {[%emt 0:00:50]} 34. Nce4 {[%emt 0:00:02]} h6 {[%emt 0:00:27]} 35. Nxg4 {[%emt 0:00:37]} h5 {[%emt 0:01:03]} 36. Ngf6 {[%emt 0:00:36]} h4 {[%emt 0:00:22]} 37. gxh4 {[%emt 0:00:23]} Nf4 {[%emt 0:00:10]} 38. h5 {[%emt 0:00:25]} Kd8 {[%emt 0:00:16]} 39. h6 {[%emt 0:02:01]} Ng6 {[%emt 0:00:52]} 40. h7 {[%emt 0:00:18]} Ke7 {[%emt 0:00:07]} 41. h4 {[%emt 0:30:25]} Kf7 {[%emt 0:30:33]} 42. h5 {[%emt 0:01:42]} Nh8 {[%emt 0:00:28]} 43. Ke2 {[%emt 0:00:31]} Kg7 {[%emt 0:00:12]} 44. Kd3 {[%emt 0:00:29]} Nf7 {[%emt 0:00:26]} 45. Kd4 {[%emt 0:00:25]} Nd8 {[%emt 0:00:52]} 46. Kd5 {[%emt 0:00:57]} Kh8 {[%emt 0:00:47]} 47. Ke5 {[%emt 0:02:31]} Nf7+ {[%emt 0:01:03]} 48. Kf5 {[%emt 0:00:24]} Nh6+ {[%emt 0:00:52]} 49. Kg6 {[%emt 0:00:25]} Nf7 {[%emt 0:00:16]} 50. Kxf7 {[%emt 0:00:49]} b5 {[%emt 0:00:39]} 51. Nf2 {[%emt 0:02:18]} b4 {[%emt 0:00:20]} 52. Nh3 {[%emt 0:02:11]} bxc3 {[%emt 0:00:34]} 53. bxc3 {[%emt 0:00:02]} a5 {[%emt 0:00:33]} 54. Nf4 {[%emt 0:00:31]} 1-0

[Event "FIDE Open Sachove Univerzity QCC"]
[Site "Ceske Budejovice"]
[Date "2020.07.04"]
[Round "4.29"]
[White "Gorej, Jan"]
[Black "Chmelik, Benedikt"]
[Result "0-1"]
[ECO "E61"]
[WhiteElo "1247"]
[BlackElo "1571"]
[Annotator "NA"]
[PlyCount "50"]
[EventDate "2020.07.01"]
[EventType "swiss"]
[EventCountry "CZE"]
[SourceTitle "playchess.com"]
[Source "ChessBase"]
[SourceQuality "1"]
[TimeControl "40/5400+30:1800+30"]

1. d4 {[%emt 0:07:18]} Nf6 {[%emt 0:00:00]} 2. c4 {[%emt 0:00:23]} g6 {[%emt 0:00:00]} 3. Nc3 {[%emt 0:00:13]} Bg7 {[%emt 0:00:00]} 4. Nf3 {[%emt 0:00:24]} d6 {[%emt 0:00:00]} 5. Bf4 {[%emt 0:01:22]} O-O {[%emt 0:00:09]} 6. e4 {[%emt 0:01:08]} Nbd7 {[%emt 0:00:11]} 7. Bd3 {[%emt 0:04:03]} c5 {[%emt 0:03:12]} 8. Qd2 {[%emt 0:02:30]} cxd4 {[%emt 0:00:47]} 9. Nd5 {[%emt 0:02:47]} e5 {[%emt 0:03:30]} 10. Nxf6+ {[%emt 0:01:50]} Bxf6 {[%emt 0:02:30]} 11. Bh6 {[%emt 0:03:19]} Re8 {[%emt 0:00:30]} 12. O-O-O {[%emt 0:02:12]} Nc5 {[%emt 0:00:26]} 13. Bc2 {[%emt 0:01:50]} Bg4 {[%emt 0:00:29]} 14. Rdg1 {[%emt 0:02:15]} b5 {[%emt 0:01:09]} 15. b4 {[%emt 0:07:01]} Nd7 {[%emt 0:00:40]} 16. cxb5 {[%emt 0:04:44]} Qb6 {[%emt 0:00:15]} 17. a4 {[%emt 0:02:39]} a5 {[%emt 0:00:45]} 18. h4 {[%emt 0:02:12]} axb4 {[%emt 0:00:44]} 19. Ng5 {[%emt 0:12:28]} Qc5 {[%emt 0:02:46]} 20. Kb1 {[%emt 0:12:07]} Qc3 {[%emt 0:00:36]} 21. Qxc3 {[%emt 0:02:39]} bxc3 {[%emt 0:00:10]} 22. Bb3 {[%emt 0:01:18]} Be6 {[%emt 0:00:11]} 23. Kc2 {[%emt 0:02:50]} Bxb3+ {[%emt 0:00:29]} 24. Kxb3 {[%emt 0:00:13]} Nc5+ {[%emt 0:00:07]} 25. Ka3 {[%emt 0:00:40]} Rxa4# {[%emt 0:00:25]} 0-1

[Event "FIDE Open Sachove Univerzity QCC"]
[Site "Ceske Budejovice"]
[Date "2020.07.09"]
[Round "5.1"]
[White "Svanda, Adam"]
[Black "Titera, Libor"]
[Result "1/2-1/2"]
[ECO "A90"]
[WhiteElo "1870"]
[BlackElo "1843"]
[Annotator "NA"]
[PlyCount "38"]
[EventDate "2020.07.01"]
[EventType "swiss"]
[EventCountry "CZE"]
[TimeControl "40/5400+30:1800+30"]

1. c4 {[%emt 0:00:00]} e6 {[%emt 0:00:00]} 2. Nf3 {[%emt 0:00:29]} f5 {[%emt 0:02:43]} 3. g3 {[%emt 0:01:53]} Nf6 {[%emt 0:00:10]} 4. Bg2 {[%emt 0:00:13]} c6 {[%emt 0:00:07]} 5. d4 {[%emt 0:05:09]} d5 {[%emt 0:00:10]} 6. Nbd2 {[%emt 0:00:48]} Bd6 {[%emt 0:01:39]} 7. b3 {[%emt 0:00:58]} O-O {[%emt 0:00:43]} 8. Bb2 {[%emt 0:01:27]} Ne4 {[%emt 0:02:36]} 9. Ne5 {[%emt 0:02:05]} Bb4 {[%emt 0:03:14]} 10. Nef3 {[%emt 0:00:50]} Nd7 {[%emt 0:07:36]} 11. O-O {[%emt 0:02:02]} Ndf6 {[%emt 0:02:16]} 12. e3 {[%emt 0:01:48]} Bd7 {[%emt 0:02:50]} 13. a3 {[%emt 0:02:29]} Nxd2 {[%emt 0:01:42]} 14. Nxd2 {[%emt 0:00:16]} Bd6 {[%emt 0:01:38]} 15. f4 {[%emt 0:01:40]} Be8 {[%emt 0:01:54]} 16. Bc3 {[%emt 0:03:44]} h5 {[%emt 0:06:18]} 17. Nf3 {[%emt 0:03:59]} Ne4 {[%emt 0:04:12]} 18. Be1 {[%emt 0:02:08]} Be7 {[%emt 0:03:15]} 19. h4 {[%emt 0:00:34]} Rf6 {[%emt 0:07:11]} 1/2-1/2

[Event "FIDE Open Sachove Univerzity QCC"]
[Site "Ceske Budejovice"]
[Date "2020.07.05"]
[Round "5.1"]
[White "Trcka, Bohdan"]
[Black "Bara, Jan"]
[Result "1-0"]
[ECO "C00"]
[WhiteElo "1528"]
[BlackElo "1128"]
[Annotator "NA"]
[PlyCount "91"]
[EventDate "2020.07.01"]
[EventType "swiss"]
[EventCountry "CZE"]
[SourceTitle "playchess.com"]
[Source "ChessBase"]
[SourceQuality "1"]
[TimeControl "40/5400+30:1800+30"]

1. e4 {[%emt 0:20:43]} e6 {[%emt 0:00:00]} 2. f4 {[%emt 0:00:07]} c5 {[%emt 0:01:09]} 3. Be2 {[%emt 0:00:06]} Nc6 {[%emt 0:00:39]} 4. c3 {[%emt 0:00:02]} d5 {[%emt 0:00:58]} 5. e5 {[%emt 0:00:07]} Nge7 {[%emt 0:00:20]} 6. d3 {[%emt 0:00:27]} Ng6 {[%emt 0:01:17]} 7. g3 {[%emt 0:00:29]} b6 {[%emt 0:01:03]} 8. h4 {[%emt 0:00:08]} Bb7 {[%emt 0:01:09]} 9. h5 {[%emt 0:00:16]} Nge7 {[%emt 0:00:11]} 10. Bf3 {[%emt 0:00:11]} Nf5 {[%emt 0:00:25]} 11. g4 {[%emt 0:00:34]} Nh4 {[%emt 0:02:55]} 12. Na3 {[%emt 0:02:13]} a6 {[%emt 0:03:51]} 13. Nc2 {[%emt 0:00:23]} d4 {[%emt 0:00:24]} 14. Be4 {[%emt 0:00:43]} f5 {[%emt 0:05:22]} 15. exf6 {[%emt 0:00:15]} Qxf6 {[%emt 0:14:47]} 16. g5 {[%emt 0:00:15]} Qf7 {[%emt 0:00:49]} 17. Rxh4 {[%emt 0:00:11]} Bd6 {[%emt 0:01:10]} 18. Nh3 {[%emt 0:00:22]} O-O-O {[%emt 0:05:22]} 19. Bxh7 {[%emt 0:00:31]} Ne7 {[%emt 0:00:29]} 20. g6 {[%emt 0:00:19]} Qf6 {[%emt 0:00:23]} 21. Ng5 {[%emt 0:00:11]} dxc3 22. b3 {[%emt 0:00:23]} e5 {[%emt 0:02:30]} 23. Qg4+ {[%emt 0:00:15]} Rd7 {[%emt 0:01:25]} 24. Qe6 {[%emt 0:00:37]} exf4 {[%emt 0:03:32]} 25. Qxf6 {[%emt 0:00:25]} gxf6 {[%emt 0:00:10]} 26. g7 {[%emt 0:00:10]} Re8 {[%emt 0:00:23]} 27. Ne4 {[%emt 0:01:10]} Bxe4 {[%emt 0:01:12]} 28. dxe4 {[%emt 0:00:10]} f3 {[%emt 0:01:04]} 29. Kf2 {[%emt 0:00:20]} Ng8 {[%emt 0:00:53]} 30. h6 {[%emt 0:00:20]} Ne7 {[%emt 0:13:39]} 31. Kxf3 {[%emt 0:00:24]} Rdd8 {[%emt 0:04:54]} 32. Ne3 {[%emt 0:00:18]} Be5 {[%emt 0:00:25]} 33. Bf5+ {[%emt 0:01:12]} Nxf5 {[%emt 0:00:26]} 34. exf5 {[%emt 0:00:04]} c2 {[%emt 0:03:32]} 35. Nxc2 {[%emt 0:00:03]} Bxa1 {[%emt 0:00:29]} 36. Nxa1 {[%emt 0:00:00]} Rd7 {[%emt 0:00:49]} 37. h7 {[%emt 0:00:21]} Rxg7 {[%emt 0:00:26]} 38. h8=Q {[%emt 0:00:07]} Rxh8 {[%emt 0:00:13]} 39. Rxh8+ {[%emt 0:00:02]} Kb7 {[%emt 0:00:03]} 40. Rf8 {[%emt 0:00:14]} Rg1 {[%emt 0:00:16]} 41. Bb2 {[%emt 0:30:13]} Rf1+ {[%emt 0:30:42]} 42. Ke4 {[%emt 0:00:14]} Rf2 {[%emt 0:00:21]} 43. Bxf6 {[%emt 0:00:08]} Rxa2 {[%emt 0:00:12]} 44. Be5 {[%emt 0:00:38]} Re2+ {[%emt 0:01:05]} 45. Kd5 {[%emt 0:00:09]} Rd2+ {[%emt 0:00:07]} 46. Ke6 {[%emt 0:00:08]} 1-0